Cogmind - Beta 17 @@@ ROGUE MODE // 2026.08.19 @ 17:51:17 Player: NeoBioHazard Result: Destroyed by Y-45 Defender with Beam Rifle Performance ------------- Evolutions (2) 1000 Regions Visited (6) 1200 Robots Destroyed (73) 365 Value Destroyed (2693) 2693 Prototype IDs (7) 140 Alien Tech Used (0) 0 Bonus (1011) 1011 TOTAL SCORE: 6409 Bonus ------- High Alert Combat Kills 261 Follower Combat Kills 50 Entered Garrisons 200 Used RIF Installer 500 Cogmind --------- Core Integrity 0/550 Matter 218/300 Energy 29/100 System Corruption 12% Temperature Cool (96) Movement Walking (190) Ox1 Location -8/Materials Parts ------- > --- POWER (1) -------- (None) > --- PROPULSION (2) --- Carbon-fiber Leg > --- UTILITY (5) ------ Heat Sink Improved Heat Sink Medium Storage Unit > --- WEAPON (3) ------- Beam Rifle Particle Gun Particle Gun > --- INVENTORY (10) --- Cooled Ion Engine Cooled Ion Engine Cooled Ion Engine Cooled Ion Engine Aluminum Leg Particle Gun Rocket Launcher Peak State ------------ > --- POWER ------------ Cooled Ion Engine > --- PROPULSION ------- Light Treads Light Treads > --- UTILITY ---------- Improved Heat Sink Improved Heat Sink Improved Heat Sink Medium Storage Unit Improved Targeting Computer > --- WEAPON ----------- Improved Medium Laser Improved Medium Laser Improved Medium Laser > --- INVENTORY -------- Cooled Ion Engine Cooled Ion Engine Cooled Ion Engine Cooled Ion Engine Heat Sink Particle Gun Improved Medium Laser Rocket Launcher Rocket Launcher Rocket Launcher [Rating: 28] Favorites ----------- Power Improved Ion Engine Engine Improved Ion Engine Power Core Light Nuclear Core Propulsion Light Treads Treads Light Treads Leg Aluminum Leg Wheel Wheel Utility Heat Sink Device Heat Sink Storage Medium Storage Unit Processor Improved Targeting Computer Protection Light Armor Plating Weapon Improved Medium Laser Energy Gun Improved Medium Laser Ballistic Gun Light Assault Rifle Launcher Rocket Launcher Build | -11 -10 -9 -9 -8 -8 -8 ------- Run | Yrd Mat Mat Sto Mat Gar Mat Slots Evolved 4 | . . 2 . 2 . . Power . | . . . . . . . Propulsion . | . . . . . . . Utility 3 | . . 2 . 1 . . Weapon 1 | . . . . 1 . . Parts Attached 69 | 6 1 2 29 1 25 5 Power 11 | 1 . . 6 . 4 . Engine 9 | 1 . . 6 . 2 . Core 2 | . . . . . 2 . Reactor . | . . . . . . . Propulsion 19 | 2 . . 10 . 6 1 Treads 10 | . . . 8 . 2 . Leg 5 | . . . . . 4 1 Wheel 4 | 2 . . 2 . . . Hover . | . . . . . . . Flight . | . . . . . . . Utility 21 | 1 1 2 8 . 8 1 Device 12 | . 1 . 5 . 5 1 Storage 2 | 1 . . 1 . . . Processor 1 | . . . 1 . . . Hackware . | . . . . . . . Protection 6 | . . 2 1 . 3 . Artifact . | . . . . . . . Weapon 18 | 2 . . 5 1 7 3 Energy Gun 14 | 2 . . 4 1 4 3 Energy Cannon . | . . . . . . . Ballistic Gun 1 | . . . 1 . . . Ballistic Cannon . | . . . . . . . Launcher 3 | . . . . . 3 . Special Weapon . | . . . . . . . Impact Weapon . | . . . . . . . Slashing Weapon . | . . . . . . . Piercing Weapon . | . . . . . . . Special Melee Weapon . | . . . . . . . Unidentified Prototypes 4 | . . . 4 . . . Parts Lost 39 | . . 3 9 . 22 5 Power 5 | . . . 2 . 2 1 Propulsion 11 | . . 1 3 . 5 2 Utility 12 | . . 2 2 . 6 2 Weapon 11 | . . . 2 . 9 . Highest Loss Streak 10 | . . 3 7 . 10 3 To Critical Strikes 1 | . . . . . 1 . Average Backups 7 | 1 2 4 6 9 8 7 Power 2 | . 1 1 1 4 4 4 Propulsion . | . . 1 1 . . 1 Utility . | . . . . . . . Weapon 3 | . 1 2 4 4 3 2 Tool/Special . | . . . . . . . Unused Backups 7 | . . . 2 . . 5 Power 5 | . . . 1 . . 4 Propulsion . | . . . . . . . Utility . | . . . . . . . Weapon 2 | . . . 1 . . 1 Tool/Special . | . . . . . . . Average Slot Usage (%) 80 | . 93 90 92 95 70 92 Engine 6 | . 14 11 8 9 4 8 Core 1 | . . . . . 3 . Treads 8 | . . . 19 18 5 . Leg 4 | . . . . . 7 15 Wheel 2 | . 28 21 1 . . . Device 15 | . 8 11 21 22 12 15 Storage 9 | . 14 11 11 9 9 9 Processor 1 | . . . 2 9 1 . Protection 7 | . . 13 5 . 8 17 Energy Gun 14 | . 28 22 17 27 10 25 Ballistic Gun 1 | . . . 4 . . . Launcher 4 | . . . . . 7 . Peak Build Rating 28 | 6 7 11 20 24 28 18 Average Rating 14 | 4 6 9 13 23 15 16 On Entrance 11 | . 6 7 6 20 24 14 Avg Prop Armor Cover (%) . | . . . . . . . Naked Turns . | . . . . . . . Heaviest Build 39 | 14 15 29 29 30 39 34 Greatest Support 40 | 20 20 20 40 40 40 20 Greatest Overweight (x) 10 | 1 . 1 2 . 9 10 Average Overweight (x) . | . . . . . 1 1 Largest Inventory Capacity 10 | 8 8 8 10 10 10 10 Average Capacity 9 | 7 8 8 8 10 10 10 Most Carried 10 | 2 3 5 10 9 10 9 Average Carried 7 | 1 2 4 6 8 8 7 Final Capacity 10 | 8 8 8 10 10 10 10 Final Carried 10 | 2 3 5 10 9 10 7 Class Distribution -------------------- 58% | Scavenger-Mutant 15% | Scavenger-Tank 13% | Mutant 11% | Scavenger-Gunner Dominant Class ---------------- Mutant | -10/Materials Mutant | -9/Materials Scavenger-Mutant | -9/Storage Scavenger-Mutant | -8/Materials Scavenger-Mutant | -8/Garrison Scavenger-Tank | -8/Materials Resources | -11 -10 -9 -9 -8 -8 -8 ----------- Run | Yrd Mat Mat Sto Mat Gar Mat Matter Collected 1282 | 260 10 20 323 . 537 132 Remotely . | . . . . . . . Salvage Created 2983 | . 30 89 1427 . 1212 225 Parts 142 | . 8 2 67 . 58 7 Haulers Intercepted 2 | . . . 2 . . . Recyclers Shooed 2 | . 1 . 1 . . . Parts Field Recycled . | . . . . . . . Retrieved Matter . | . . . . . . . Parts Self-Destructed . | . . . . . . . Prevented . | . . . . . . . Parts Restored . | . . . . . . . Kills | -11 -10 -9 -9 -8 -8 -8 ------- Run | Yrd Mat Mat Sto Mat Gar Mat Combat Hostiles Destroyed 58 | . . . 20 . 35 3 Guns 40 | . . . 18 . 19 3 AOE 13 | . . . . . 13 . Classes Destroyed 12 | . 2 1 6 . 3 . Worker 3 | . . . 3 . . . Builder 1 | . 1 . . . . . Hauler 2 | . . . 2 . . . Recycler 6 | . . 1 4 . . 1 Operator 2 | . 1 . . . . 1 Watcher 1 | . . . 1 . . . Swarmer 4 | . . . . . 4 . Cutter 3 | . . . . . 3 . Grunt 36 | . . . 12 . 21 3 Duelist 1 | . . . 1 . . . Sentry 13 | . . . 7 . 6 . Programmer 1 | . . . . . 1 . Best Kill Streak 7 | . 1 1 6 . 7 2 Combat Bots Only 7 | . . . 6 . 7 2 Max Kills in Single Turn 3 | . 1 1 2 . 3 1 Gunslinging 1 | . . . . . 1 . Exploded 3 | . . . . . 3 . Melee . | . . . . . . . Uniques/NPCs Destroyed . | . . . . . . . Combat | -11 -10 -9 -9 -8 -8 -8 -------- Run | Yrd Mat Mat Sto Mat Gar Mat Hostile Shots Fired 405 | . 1 69 115 . 191 29 Missed 91 | . . 15 20 . 50 6 Hits 314 | . 1 54 95 . 141 23 Melee 15 | . . . 6 . 9 . Projectile 299 | . 1 54 89 . 132 23 Critical Strikes 19 | . . 3 2 . 11 3 Damage Taken 4764 | . 11 522 1351 . 2500 380 Core 931 | . . 39 334 . 494 64 Absorbed by Shields . | . . . . . . . Core Remaining (%) 68 | 100 100 . 6 . . . Volleys Fired 212 | . 5 13 93 . 86 15 Largest 3 | . 2 2 2 . 3 3 Hottest 186 | . 100 100 112 . 186 186 Shots Fired 416 | . 10 21 174 . 166 45 Gun 385 | . 10 21 174 . 135 45 Cannon . | . . . . . . . Launcher 31 | . . . . . 31 . Special . | . . . . . . . Kinetic 48 | . . . 48 . . . Thermal 337 | . 10 21 126 . 135 45 Explosive 31 | . . . . . 31 . Electromagnetic . | . . . . . . . Robot Hit Streak 27 | . 3 4 27 . 23 7 Robot Miss Streak 4 | . 2 4 3 . 4 3 Penetration Max . | . . . . . . . Secondary Targets 9 | . . . 2 . 5 2 Max Gunslinging Chain 1 | . . . 1 . 1 1 Shots Hit Robots 282 | . 6 9 124 . 118 25 Core Hits 141 | . 4 3 55 . 66 13 Critical Kills . | . . . . . . . Critical Parts Destroyed . | . . . . . . . Critical Strikes 17 | . . . 5 . 11 1 Burn 17 | . . . 5 . 11 1 Melee Attacks . | . . . . . . . Impact . | . . . . . . . Slashing . | . . . . . . . Piercing . | . . . . . . . Sneak Attacks . | . . . . . . . Combat Hostiles . | . . . . . . . Follow-up Attacks . | . . . . . . . Damage Inflicted 5639 | . 74 127 1726 . 3324 388 Guns 4028 | . 74 126 1726 . 1714 388 Cannons . | . . . . . . . Explosions 1610 | . . . . . 1610 . Melee . | . . . . . . . Ramming 1 | . . 1 . . . . Kinetic 265 | . . . 265 . . . Thermal 3763 | . 74 126 1461 . 1714 388 Explosive 1610 | . . . . . 1610 . Electromagnetic . | . . . . . . . Impact . | . . . . . . . Slashing . | . . . . . . . Piercing . | . . . . . . . Highest Corruption 12 | . . . . . 12 12 Average Corruption 7 | . . . . . 6 12 Corruption Purged . | . . . . . . . Corruption Blocked . | . . . . . . . Effects 54 | . . . . . 46 8 Message Errors 15 | . . . . . 13 2 Matter Fused 13 | . . . . . 10 3 Heat Flow Errors 5 | . . . . . 5 . Energy Discharges 6 | . . . . . 5 1 Parts Rejected 2 | . . . . . 1 1 Data Loss (minor) 6 | . . . . . 5 1 Data Loss (major) 3 | . . . . . 3 . Misfires 1 | . . . . . 1 . Alerts 2 | . . . . . 2 . Weapon Failures 1 | . . . . . 1 . Overload Shots . | . . . . . . . Overflow Damage 11 | . . . . . 11 . Projectiles . | . . . . . . . Explosions 11 | . . . . . 11 . Melee . | . . . . . . . Knockbacks . | . . . . . . . Impact . | . . . . . . . Kinetic . | . . . . . . . Secondary . | . . . . . . . Self-Inflicted Damage 101 | . . . . . 101 . Shots 5 | . . . . . 5 . Rammed 1 | . . 1 . . . . Targets Rammed 1 | . . 1 . . . . Kicked . | . . . . . . . Crushed . | . . . . . . . Highest Temperature 359 | . 98 282 230 . 359 333 Average Temperature 84 | . 37 90 53 . 99 107 Received Heat Transfer 1749 | . 6 96 513 . 900 234 Effects 3 | . . 1 . . 2 . Energy Bleed 2 | . . . . . 2 . Interference 1 | . . 1 . . . . Siege Activations . | . . . . . . . Martial Activations . | . . . . . . . Shielding Activations . | . . . . . . . Robots Disrupted . | . . . . . . . Combat Hostiles . | . . . . . . . Robots Corrupted . | . . . . . . . Combat Hostiles . | . . . . . . . Parts Fried . | . . . . . . . Impact Corruptions . | . . . . . . . Robots Melted 5 | . . . 2 . 3 . Combat Hostiles 5 | . . . 2 . 3 . Parts Melted 23 | . . . 10 . 12 1 Heat Transferred 9387 | . 222 370 3612 . 4184 999 Parts Sabotaged . | . . . . . . . Parts Stolen . | . . . . . . . Parts Stripped . | . . . . . . . Power Chain Reactions . | . . . . . . . Alert | -11 -10 -9 -9 -8 -8 -8 ------- Run | Yrd Mat Mat Sto Mat Gar Mat Maximum Alert Level 3 | . . . . . 3 2 Low Security (%) 49 | 100 100 100 100 100 19 . Level 1 16 | . . . . . 30 . Level 2 13 | . . . . . 13 100 Level 3 19 | . . . . . 35 . Level 4 . | . . . . . . . Level 5 . | . . . . . . . High Security . | . . . . . . . Max Security . | . . . . . . . Peak Influence 1092 | . 8 85 195 61 1092 532 Initial 532 | . . . 31 61 39 532 Average 344 | . . 23 76 61 523 510 Influence Increases 2250 | . 22 140 687 . 1273 128 Destroy 0b10 Robot/C 1200 | . . . 440 . 700 60 Destroy 0b10 Robot/NC 75 | . 10 5 50 . . 10 Destroy Leader 156 | . . . 116 . 20 20 Allied During Kill 6 | . . . 6 . . . Successful Hack 60 | . 12 . 13 . 28 7 Disable Machine 30 | . . . 15 . . 15 Anti-Garrison Action 350 | . . . . . 350 . Destroy Structure 133 | . . . 2 . 130 1 Lose Combat Pursuer 240 | . . 135 45 . 45 15 Influence Decreases 1740 | . 22 65 615 86 242 710 Entered New Map 712 | . . . 44 86 22 560 Time Decay 577 | . 22 35 420 . . 100 Lost Part 390 | . . 30 90 . 220 50 Lost Ally 40 | . . . 40 . . . Purge Threat 21 | . . . 21 . . . Squads Dispatched 6 | . . 3 2 . . 1 Investigation . | . . . . . . . Extermination . | . . . . . . . Reinforcement 3 | . . 3 . . . . Assault 2 | . . . 2 . . . Garrison 1 | . . . . . . 1 Intercept . | . . . . . . . Searches Triggered . | . . . . . . . Construction Impeded 1 | . . 1 . . . . Haulers Reinforced . | . . . . . . . Active Scanning Responses . | . . . . . . . Cargo Convoy Interrupts . | . . . . . . . Stealth | -11 -10 -9 -9 -8 -8 -8 --------- Run | Yrd Mat Mat Sto Mat Gar Mat Distress Signals 4 | . 1 2 . . . 1 Communications Jammed . | . . . . . . . Distress Signals . | . . . . . . . Times Spotted 92 | . 2 19 29 . 35 7 Peak Tracking Total 12 | . 2 12 8 . 5 4 Tactical Retreats 8 | . . 2 2 . 3 1 Traps | -11 -10 -9 -9 -8 -8 -8 ------- Run | Yrd Mat Mat Sto Mat Gar Mat Traps Triggered 7 | . . 1 . . 6 . Indirectly . | . . . . . . . Trap Hack Attempts . | . . . . . . . Triggered . | . . . . . . . Disarmed . | . . . . . . . Reprogrammed . | . . . . . . . Reused . | . . . . . . . Traps Extracted . | . . . . . . . Installed . | . . . . . . . Triggered . | . . . . . . . Machines | -11 -10 -9 -9 -8 -8 -8 ---------- Run | Yrd Mat Mat Sto Mat Gar Mat Machines Disabled 3 | . . . 1 . 1 1 Max in Single Turn 1 | . . . 1 . 1 1 Garrison Access 1 | . . . 1 . . . Garrison Relay 1 | . . . . . 1 . Machines Repaired . | . . . . . . . Machines Dismantled . | . . . . . . . Machines Sabotaged . | . . . . . . . Overloaded Fab Kills . | . . . . . . . Hacking | -11 -10 -9 -9 -8 -8 -8 --------- Run | Yrd Mat Mat Sto Mat Gar Mat Machines Accessed 13 | . 2 . 5 1 3 2 Terminals 11 | . 2 . 4 . 3 2 Fabricators . | . . . . . . . Repair Stations . | . . . . . . . Recycling Units . | . . . . . . . Scanalyzers . | . . . . . . . Garrison Access 2 | . . . 1 1 . . Total Hacks 32 | . 5 . 14 3 7 3 Successful 13 | . 2 . 7 1 2 1 Failed 19 | . 3 . 7 2 5 2 Catastrophic 4 | . 1 . . . 2 1 Database Lockouts . | . . . . . . . Manual 13 | . 3 . 7 . . 3 Terminals 27 | . 5 . 12 . 7 3 Fabricators . | . . . . . . . Repair Stations . | . . . . . . . Recycling Units . | . . . . . . . Scanalyzers . | . . . . . . . Garrison Access 5 | . . . 2 3 . . Terminal Hacks 11 | . 2 . 6 . 2 1 Prototype ID Bank 2 | . . . 2 . . . Open Door 1 | . . . 1 . . . Branch Access Points 2 | . 1 . . . . 1 Unreport Threat 2 | . . . 2 . . . Locate Traps 2 | . 1 . 1 . . . Garrison Registry 1 | . . . . . 1 . Patrol Navigation 1 | . . . . . 1 . Fabricator Hacks . | . . . . . . . Repair Station Hacks . | . . . . . . . Recycling Unit Hacks . | . . . . . . . Scanalyzer . | . . . . . . . Garrison Access Hacks 2 | . . . 1 1 . . Unlock Access 1 | . . . . 1 . . Seal Access 1 | . . . 1 . . . Unauthorized Hacks . | . . . . . . . Terminals . | . . . . . . . Fabricators . | . . . . . . . Repair Stations . | . . . . . . . Recycling Units . | . . . . . . . Scanalyzers . | . . . . . . . Garrison Access . | . . . . . . . Data Cores Recovered 2 | . 1 . . . . 1 Used . | . . . . . . . Hacking Detections 9 | . 2 . 3 . 2 2 Full Trace Events 2 | . . . . . 2 . Feedback Events . | . . . . . . . Feedback Blocked . | . . . . . . . Robot Schematics Acquired . | . . . . . . . Robots Built . | . . . . . . . Authchips . | . . . . . . . Time . | . . . . . . . Total Robot Build Rating . | . . . . . . . Part Schematics Acquired . | . . . . . . . Parts Built . | . . . . . . . Authchips . | . . . . . . . Time . | . . . . . . . Total Part Build Rating . | . . . . . . . Part Studies Acquired . | . . . . . . . Parts Repaired . | . . . . . . . Time . | . . . . . . . Parts Recycled . | . . . . . . . Recycled Matter . | . . . . . . . Retrieved Matter . | . . . . . . . Retrieved Components . | . . . . . . . Parts Scanalyzed . | . . . . . . . Part Schematics Acquired . | . . . . . . . Parts Damaged . | . . . . . . . Bothacking | -11 -10 -9 -9 -8 -8 -8 ------------ Run | Yrd Mat Mat Sto Mat Gar Mat Used RIF Installer 1 | . . . . . 1 . Robots Hacked . | . . . . . . . Non-combat . | . . . . . . . Combat . | . . . . . . . Robot Hacks Applied . | . . . . . . . Relay Couplers Released 8 | . . . . . 8 . Machine Destruction 5 | . . . . . 5 . Programmers 3 | . . . . . 3 . Fabnet Peak Effective % . | . . . . . . . Robots Rewired . | . . . . . . . Allies Hacked . | . . . . . . . Hacks Repelled . | . . . . . . . Allies | -11 -10 -9 -9 -8 -8 -8 -------- Run | Yrd Mat Mat Sto Mat Gar Mat Total Allies 2 | . . . 2 . . . Largest Group 2 | . . . 2 . . . Highest-Rated Group 62 | . . . 62 . . . Highest-Rated Ally 31 | . . . 31 . . . Total Orders . | . . . . . . . Ally Attacks 7 | . . . 7 . . . Total Damage 150 | . . . 150 . . . Kills 2 | . . . 2 . . . Allies Corrupted . | . . . . . . . Allies Melted . | . . . . . . . Intel | -11 -10 -9 -9 -8 -8 -8 ------- Run | Yrd Mat Mat Sto Mat Gar Mat Active Infowar (turns) 732 | . 97 126 509 . . . Structural 732 | . 97 126 509 . . . Robot Analysis Total . | . . . . . . . Derelict Logs Recovered . | . . . . . . . Drone Launches . | . . . . . . . Drone Recoveries . | . . . . . . . Exploration | -11 -10 -9 -9 -8 -8 -8 ------------- Run | Yrd Mat Mat Sto Mat Gar Mat Turns Passed 3553 | 42 160 126 1024 16 1966 219 Spaces Moved 1593 | 38 164 95 428 8 790 70 Core 14 | 3 . . 2 . 7 2 Treads 714 | . . . 391 8 315 . Legs 536 | . . . . . 468 68 Wheels 329 | 35 164 95 35 . . . Hover . | . . . . . . . Flight . | . . . . . . . Fastest Speed 50 | 50 80 80 90 160 120 190 Average Speed 168 | 81 80 91 154 160 206 202 Slowest Speed 550 | 95 80 95 160 160 500 550 Overloaded Moves . | . . . . . . . Propulsion Burnouts . | . . . . . . . Robots Hopped . | . . . . . . . Potential Cave-ins . | . . . . . . . Cave-ins Triggered 1 | . . . . . 1 . Exploration Rate (%) 28 | 3 34 16 54 3 79 9 Regions Visited 6 Branch Regions 1 Pre-discovered Areas . | . . . . . . . Known Exits Taken 1 | . . . . 1 . . Unknown Exits Taken 4 | 1 1 1 1 . . . Scrap Searched . | . . . . . . . Spaces Dug . | . . . . . . . Terrain Destroyed 173 | . . . . . 173 . Melee . | . . . . . . . Projectile . | . . . . . . . AOE 173 | . . . . . 173 . Terrain Rammed . | . . . . . . . Walls Destroyed . | . . . . . . . Machines Disabled . | . . . . . . . Actions | -11 -10 -9 -9 -8 -8 -8 --------- Run | Yrd Mat Mat Sto Mat Gar Mat Total 2066 | 45 182 112 625 11 979 112 Wait 133 | . 12 . 52 . 48 21 Move 1588 | 37 163 95 427 8 788 70 Hop . | . . . . . . . Pick Up 20 | 2 1 2 10 1 4 . Fast Attach 34 | 6 1 2 8 . 15 2 Attach 18 | . . . 7 2 6 3 Detach . | . . . . . . . Swap 26 | . . . 18 . 7 1 Drop 12 | . . . 10 . 2 . Fire 212 | . 5 13 93 . 86 15 Melee . | . . . . . . . Ram . | . . . . . . . Kick . | . . . . . . . Crush . | . . . . . . . Escape Stasis 23 | . . . . . 23 . Rewire . | . . . . . . . Trap . | . . . . . . . Miscellaneous . | . . . . . . . Route ------- -11/Scrapyard -10/Materials (discovered 2 exits: [*Mat] / Min) -9/Materials -9/Storage -8/Materials -8/Garrison (discovered 4 exits: *Mat x4) -8/Materials History --------- Turn | Location | Event 12 | -11/Scrapyard | Discovered new exit (range 15) 43 | -11/Scrapyard | Entered Materials 144 | -10/Materials | Discovered new exit (range 7) 156 | -10/Materials | Identified exit to Mines 203 | -10/Materials | Entered another Materials area 203 | -9/Materials | Evolved 2 slots: Utility x2 303 | -9/Materials | Build established: Mutant 324 | -9/Materials | Discovered new exit (range 6) 329 | -9/Materials | Entered Storage 342 | -9/Storage | Lost 3 parts (1n2u) 424 | -9/Storage | Core integrity fell below 50% 457 | -9/Storage | Lost 7 parts (2p3n2w) 729 | -9/Storage | Build established: Scavenger-Mutant 1111 | -9/Storage | Met a pair of Derelict thieves 1150 | -9/Storage | Core integrity fell below 20% 1248 | -9/Storage | Discovered new exit (range 15) 1353 | -9/Storage | Entered Materials 1353 | -8/Materials | Evolved 2 slots: Utility x1, Weapon x1 1369 | -8/Materials | Identified exit to Garrison 1369 | -8/Materials | Entered Garrison 1399 | -8/Garrison | Triggered checkpoint 1557 | -8/Garrison | Triggered checkpoint 1648 | -8/Garrison | Build established: Scavenger-Gunner 1681 | -8/Garrison | Triggered checkpoint 1776 | -8/Garrison | Lost 10 parts (1p1n4u4w) 1778 | -8/Garrison | Destroyed 7 combat bots 1809 | -8/Garrison | Discovered new exit (range 10) 1935 | -8/Garrison | Triggered checkpoint 2069 | -8/Garrison | Build established: Scavenger-Mutant 2085 | -8/Garrison | Discovered new exit (range 13) 2161 | -8/Garrison | Triggered checkpoint 2165 | -8/Garrison | Core integrity fell below 50% 2279 | -8/Garrison | Lost 5 parts (1p1n1u2w) 2321 | -8/Garrison | Triggered checkpoint 2358 | -8/Garrison | Core integrity fell below 20% 2556 | -8/Garrison | Triggered checkpoint 2627 | -8/Garrison | Triggered checkpoint 2688 | -8/Garrison | Discovered new exit (range 5) 2699 | -8/Garrison | Build established: Scavenger-Tank 2722 | -8/Garrison | Crushed by falling debris 2722 | -8/Garrison | System corruption reached 10% 2753 | -8/Garrison | Lost 3 parts (1u2w) 2797 | -8/Garrison | Garrison Relay disabled 2859 | -8/Garrison | Discovered new exit (range 14) 2905 | -8/Garrison | Discovered new exit (range 80) 2905 | -8/Garrison | Discovered new exit (range 7) 2905 | -8/Garrison | Discovered new exit (range 40) 2905 | -8/Garrison | Discovered new exit (range 42) 3001 | -8/Garrison | Build established: Scavenger-Mutant 3124 | -8/Garrison | Installed Relay Interface Framework 3335 | -8/Garrison | Entered Materials 3478 | -8/Materials | Garrison activated, responded to threat 3538 | -8/Materials | Lost 3 parts (2n1u) 3554 | -8/Materials | Destroyed by Y-45 Defender with Beam Rifle Last Messages --------------- 03506_ Acquired 63 matter. 03507_ System corrupted: Component data lost. 03507_ Aluminum Leg destroyed. 03514_ W-25 Informer sends out distress signal. 03520_ Acquired Carbon-fiber Leg. 03523_ Critical hit (Burn: +37). 03524_ System corrupted: Energy discharge (-91). 03525_ Lgt. Nuclear Core melted. 03525_ G-47 Trooper destroyed. 03525_ Switching to secondary target: G-47 Trooper. 03525_ W-25 Informer suffers critical hit (Burn). 03538_ Imp. Ion Engine destroyed. 03539_ X:KBH B/D5CMMCZXJMZIGL0XAERUWV 03539_ G-47 Trooper destroyed. 03539_ Switching to secondary target: Y-45 Defender. 03540_ Lgt. Armor Plating destroyed. 03546_ Acquired Imp. Heat Sink. 03548_ U-05 Engineer builds a Door. 03554_ System corrupted: Lgt. Armor Plating rejected. 03554_ Critical hit (Burn: +37). Map ----- +----------------------------------------------------+ | ???????????????????????????????????????? | | ???????????????????????????????????????? | | ???????????????????????????????????????? | | ???????????????????????????????????????? | | ???????????????????????????????????????? | | ???????????????????????????????????????? | | ???????????????????????????????????????? | | ???????????????????????????????????????? | | ???????????????????????????????????????? | | ???????????????????????????????????????? | | ????????????????????????? ?????????????? | | ????????????????????????? ?????????????? | | ????????????????????????? ?????????????? | | ????????????????????????? ?????????????? | | ????????????????????????? ?????????????? | | ????????????????????????? ?????????????? | | ????????????????????????? ?????????????? | | ????????????????????????# #????????????? | | ????????????????????????# #????????????? | | ????????????????????????# #????????????? | | ????????????????????????# #????????????? | | ???????????????????????? +????????????? | | ????????????????????????#Y#????????????? | | ????????????????????????#%#????????????? | | ????????????????????????#%#????????????? | | ????????????????????????#@#????????????? | | ????????????????????????# #????????????? | | ????????????????????????#m#????????????? | | ?????????????????########/##???????????? | | ?????????????????#! #???????????? | | ?????????????????# ] u #???????????? | | ?????????????????# #???????????? | | ?????????????????# #???????????? | | ?????????????????# #???????????? | | ?????????????????# #???????????? | | ?????????????????# #???????????? | | ?????????????????# #???????????? | | ?????????????????#####+#####???????????? | | ????????#+######+### #?????????????? | | ??????? [ #?????????????? | | ??????? T #?????????????? | | ??????? #?????????????? | | ?????????########### #?????????????? | | ???????????????????### ###?????????????? | | ?????????????????????# #???????????????? | | ?????????????????????# #???????????????? | | ?????????????????????# #???????????????? | | ?????????????????????# #???????????????? | | ?????????????????????# #???????????????? | | ?????????????????????#!#???????????????? | +----------------------------------------------------+ Best States ------------- Heat Dissipation 73 Energy Generation 14 Energy Capacity 280 Matter Stores 300 Matter Capacity 300 Sight Range 16 Terrain Scan Density 10 Armor Coverage 450 Evasion (%) 55 Targeting Accuracy 6 Recoil Reduction 2 Item Schematics ----------------- None Robot Schematics ------------------ None Fabricated ------------ Nothing Repaired ---------- Nothing Studied --------- None Alien Tech Used ----------------- None Achievements -------------- None Challenges ------------ None Game ------ Seed MultinovaMassPropulsion Manual? 0 Play Time 00:21:38 Cumulative 262.5 hours Start 2026.08.19 @ 17:19:46 End 2026.08.19 @ 17:51:17 Sessions 1 Manual Loads 0 Difficulty Rogue Special Mode None Game No. 452 Rogue 289 Adventurer 15 Explorer 148 Win Type - Total 30 Types 29/0/0/1/0/0/0/0/0/0 Lore% 65 Gallery% 64 Achievement% 58 Wizard Run 0 Options --------- Layout 0 ASCII 0 Keyboard 1 Movement Numpad Keybinds 0 Fullscreen 2 Font 18/SmallcapsGlow Map View 76x50 Zoom Use 0% Tactical HUD 1 Map Filters NONE Filters NONE Steam 1 RUN: 620046f8-1007-4a52-be20-da93a21a1e19